bitfinex/quotes_ETHUSD_20220117
["timestamp","ask_amount","ask_price","bid_price","bid_amount"]
[1642453435157,0.00341054,3209.3,3209.1,1.6]
[1642453435389,0.00341054,3209.3,3209.1,0.6]
[1642453440599,0.00341054,3209.3,3209.1,3.7]
[1642453450264,0.00341054,3209.3,3209.2,23.86033406]
[1642453450470,0.00341054,3209.3,3209.2,19.55]
[1642453450650,0.00341054,3209.3,3209.2,20.002]
[1642453452052,0.00341054,3209.3,3209.2,23.502]
[1642453452296,0.00341054,3209.3,3209.2,20.002]
[1642453453654,0.00341054,3209.3,3209.2,20.78053]
[1642453457558,0.00341054,3209.3,3209.2,39.07656306]
[1642453458013,2.66464464,3210.0,3209.4,0.62269]
[1642453458246,0.00341054,3209.9,3209.6,0.77837]
[1642453458456,0.00341054,3209.9,3209.8,24.7]
[1642453458655,2.66464464,3210.0,3209.8,19.5079]
[1642453458863,6.2303,3210.1,3209.9,1.26122705]
[1642453459117,6.2303,3210.1,3210.0,14.652]
[1642453459253,6.2303,3210.1,3210.0,15.252]
[1642453459451,6.2303,3210.1,3210.0,16.252]
[1642453460698,6.2303,3210.1,3210.0,2.052]
[1642453461097,8.89440647,3210.1,3210.0,2.052]
[1642453461300,8.89440647,3210.1,3210.0,0.452]
[1642453461598,8.89440647,3210.1,3210.0,6.202]
[1642453462200,8.89440647,3210.1,3210.0,9.302]
[1642453463001,8.89440647,3210.1,3210.0,9.902]
[1642453463201,8.89440647,3210.1,3210.0,5.152]
[1642453467600,8.89440647,3210.1,3210.0,10.952]
[1642453468401,8.89440647,3210.1,3210.0,5.152]
[1642453472557,8.89440647,3210.1,3210.0,11.152]
[1642453472762,8.89440647,3210.1,3210.0,5.152]
[1642453473558,8.89440647,3210.1,3210.0,9.602]
[1642453475406,8.89440647,3210.1,3210.0,13.852]
[1642453475614,8.89440647,3210.1,3210.0,9.602]
[1642453475813,1.95611975,3210.1,3210.0,20.89902802]
[1642453476206,1.95611975,3210.1,3210.0,20.93032295]
[1642453476407,1.95611975,3210.1,3210.0,21.65412295]
[1642453476608,2.8,3210.4,3210.2,1.28523265]
[1642453476814,2.8,3210.4,3210.2,1.73723265]
[1642453477007,0.00568423,3210.3,3210.2,2.33723265]
[1642453477416,0.00568423,3210.3,3210.2,15.28723265]
[1642453480363,0.00568423,3210.3,3210.2,3.33723265]
[1642453480961,0.00568423,3210.3,3210.2,2.33723265]
[1642453481160,0.00568423,3210.3,3210.2,3.33723265]
[1642453481457,0.00568423,3210.3,3210.2,13.63723265]
[1642453481685,0.00568423,3210.3,3210.2,14.63723265]
[1642453484411,2.15787126,3210.4,3210.3,6.8]
[1642453484607,2.15787126,3210.4,3210.3,7.8]
[1642453488554,2.15787126,3210.4,3210.3,1.0]
[1642453488952,2.15787126,3210.4,3210.2,1.052]
[1642453489365,2.15787126,3210.4,3210.0,3.1]
[1642453489570,4.13297264,3210.3,3210.0,3.1]
[1642453489808,2.15787126,3210.4,3210.1,0.00113684]
[1642453490016,6.2928069,3210.4,3210.1,0.00113684]
[1642453491110,6.2928069,3210.4,3210.1,1.00113684]
[1642453491310,6.2928069,3210.4,3210.1,0.00113684]
[1642453491537,6.2928069,3210.4,3210.1,1.00113684]
[1642453493651,6.2928069,3210.4,3210.1,0.00113684]
[1642453495057,2.15787126,3210.4,3210.1,0.00113684]
[1642453496463,2.66439942,3210.3,3210.1,0.00113684]
[1642453499714,2.66439942,3210.3,3210.1,1.00113684]
[1642453510665,2.61439942,3210.3,3210.1,1.00113684]
[1642453511462,2.15787126,3210.4,3210.1,1.00113684]
[1642453512707,0.46073249,3210.3,3210.1,1.00113684]
[1642453519822,0.46073249,3210.3,3210.1,1.0]
[1642453522813,0.42853249,3210.3,3210.1,1.0]
[1642453526668,3.62463528,3210.4,3210.1,1.0]
[1642453527077,2.15787126,3210.4,3210.1,1.0]
[1642453531060,2.66388406,3210.3,3210.1,1.0]
[1642453544213,2.66388406,3210.3,3210.2,22.27640202]
[1642453544526,2.66388406,3210.3,3210.2,25.26410202]
[1642453545020,3.12372807,3210.3,3210.2,25.26410202]
[1642453545617,0.45984401,3210.3,3210.2,25.26410202]
[1642453546274,2.15787126,3210.4,3210.2,28.76410202]
[1642453546465,2.15787126,3210.4,3210.3,19.60087338]
[1642453547270,2.15787126,3210.4,3210.3,20.05287338]
[1642453548271,2.15787126,3210.4,3210.3,21.27344572]
[1642453549272,2.15787126,3210.4,3210.3,6.77344572]
[1642453549477,2.15787126,3210.4,3210.3,2.67257234]
[1642453549708,2.15787126,3210.4,3210.3,15.73475587]
[1642453549928,2.15787126,3210.4,3210.3,16.70055094]
[1642453551718,2.15787126,3210.4,3210.3,16.96905094]
[1642453551969,2.15787126,3210.4,3210.3,17.00055094]
[1642453552114,2.15787126,3210.4,3210.3,13.23457525]
[1642453553315,2.15787126,3210.4,3210.3,17.47768113]
[1642453553568,2.15787126,3210.4,3210.3,13.23457525]
[1642453553956,2.15787126,3210.4,3210.3,17.4716709]
[1642453554159,2.15787126,3210.4,3210.3,13.23457525]
[1642453560320,2.15787126,3210.4,3210.3,3.28457525]
[1642453560629,2.15787126,3210.4,3210.3,9.18457525]
[1642453560820,2.15787126,3210.4,3210.3,7.96400291]
[1642453562556,2.15787126,3210.4,3210.3,12.11400291]
[1642453563897,2.15787126,3210.4,3210.3,7.96400291]
[1642453565914,2.15787126,3210.4,3210.3,2.06400291]
[1642453566120,2.15787126,3210.4,3210.3,1.06400291]
[1642453566416,2.15787126,3210.4,3210.3,5.86400291]
[1642453566715,2.15787126,3210.4,3210.3,6.86400291]
[1642453568257,2.15787126,3210.4,3210.3,6.41200291]
[1642453571262,2.15787126,3210.4,3210.3,1.61200291]
[1642453571659,2.15787126,3210.4,3210.3,0.61200291]
[1642453571858,2.15787126,3210.4,3210.3,0.31200291]
[1642453572319,2.61738174,3210.4,3210.3,0.31200291]
[1642453572708,5.28123758,3210.4,3210.3,0.31200291]
[1642453573407,5.28123758,3210.4,3210.3,0.01200291]
[1642453573612,9.529964,3210.4,3210.3,0.01200291]
[1642453574322,0.82297964,3210.2,3210.0,3.101]
[1642453574614,5.93750397,3210.1,3210.0,3.101]
[1642453574815,5.93750397,3210.1,3209.5,1.0]
[1642453574816,5.8,3210.0,3209.5,1.0]
[1642453575016,6.57874,3210.0,3209.9,1.33539231]
[1642453575211,10.90735829,3210.0,3209.3,0.124522]
[1642453575415,0.7787322,3209.8,3209.3,0.124522]
[1642453575629,4.27937858,3209.7,3208.2,3.199223]
[1642453575865,1.10107276,3208.8,3208.2,0.124523]
[1642453576067,0.8807,3208.8,3208.4,1.35526462]
[1642453576474,0.8807,3208.8,3208.5,0.01023162]
[1642453576668,0.7789705,3208.7,3208.4,1.35526462]
[1642453577081,0.78010735,3208.7,3208.4,1.35526462]
[1642453577866,4.43115327,3208.6,3208.4,1.35526462]
[1642453578080,7.12527005,3208.6,3208.4,1.35526462]
[1642453578269,4.31135763,3208.5,3208.4,1.35526462]
[1642453578667,4.31135763,3208.5,3208.2,0.26648965]
[1642453578867,5.09048763,3208.5,3207.5,1.452]
[1642453579108,5.09048763,3208.5,3208.3,1.25383256]
[1642453579271,1.5582567,3208.4,3208.3,1.25383256]
[1642453579484,0.77913,3208.5,3208.3,1.25383256]
[1642453580543,0.77913,3208.5,3208.3,1.85383256]
[1642453580544,2.66515236,3208.4,3208.3,1.85383256]
[1642453581043,6.73263335,3208.4,3208.3,1.85383256]
[1642453581440,9.43263335,3208.4,3208.3,1.55383256]
[1642453581643,6.76748099,3208.4,3208.3,1.25383256]
[1642453582041,7.54669099,3208.4,3208.2,1.09613286]
[1642453582240,4.36125395,3208.3,3208.2,1.09613286]
[1642453582442,0.77918,3208.2,3207.4,0.124593]
[1642453582654,4.38525988,3208.1,3207.4,0.124593]
[1642453582849,4.38525988,3208.1,3207.5,0.00454738]
[1642453583559,5.94376828,3208.1,3207.5,0.00454738]
[1642453583960,5.16443828,3208.1,3207.5,0.00454738]
[1642453584160,4.22377383,3208.0,3207.5,0.00454738]
[1642453584675,2.66530383,3208.0,3207.7,0.02058553]
[1642453584862,2.66530383,3208.0,3207.8,1.48440228]
[1642453585062,2.66530383,3208.0,3207.8,1.78724439]
[1642453585373,6.62070234,3208.1,3207.9,0.00227369]
[1642453586574,14.86361849,3208.0,3207.9,0.00227369]
[1642453586971,4.16361849,3208.0,3207.9,0.00227369]
[1642453587225,12.21361849,3208.0,3207.9,0.00227369]
[1642453587815,4.16361849,3208.0,3207.9,0.00227369]
[1642453588017,2.3570474,3208.1,3207.9,0.00227369]
[1642453588428,14.87228506,3208.0,3207.9,0.00227369]
[1642453588922,4.8,3207.9,3207.7,0.02058553]
[1642453589119,6.3586308,3207.9,3207.7,0.02058553]
[1642453589417,5.0,3207.8,3207.7,0.02058553]
[1642453589617,5.0,3207.8,3207.4,3.4]
[1642453589618,5.77931,3207.8,3207.4,3.4]
[1642453589888,10.68160815,3207.8,3207.7,0.00113685]
[1642453590028,1.55862,3207.8,3207.7,0.00113685]
[1642453590221,0.77931,3207.8,3207.7,0.00113685]
[1642453591057,0.77931,3207.8,3207.6,1.5456987]
[1642453591773,1.5586204,3207.8,3207.6,1.5456987]
[1642453594563,1.57238099,3207.8,3207.7,0.0205935]
[1642453599647,1.57238099,3207.8,3207.6,1.5456987]
[1642453599648,1.57238099,3207.8,3207.6,1.56630016]
[1642453599770,1.57238099,3207.8,3207.6,1.51630016]
[1642453602079,0.01376059,3207.8,3207.7,0.452]
[1642453602339,0.01376059,3207.8,3207.7,1.33146339]
[1642453602534,0.01376059,3207.8,3207.7,2.33146339]
[1642453604639,0.01724458,3207.8,3207.7,2.33146339]
[1642453607070,0.01724458,3207.8,3207.7,6.41076309]
[1642453607485,0.01724458,3207.8,3207.7,6.41872891]
[1642453607668,0.01724458,3207.8,3207.7,2.33146339]
[1642453608977,0.01724458,3207.8,3207.7,0.452]
[1642453609171,0.01724458,3207.8,3207.6,1.51630016]
[1642453610625,0.79646908,3207.8,3207.6,1.51630016]
[1642453610824,2.66590896,3207.7,3207.6,1.51630016]
[1642453611016,2.66590896,3207.7,3207.6,0.02060146]
[1642453611417,7.20666049,3207.7,3207.6,0.02060146]
[1642453611624,7.20666049,3207.7,3207.3,1.1211285]
[1642453611891,7.98604049,3207.7,3207.3,1.1211285]
[1642453612132,5.75,3207.6,3206.7,0.00124053]
[1642453612335,1.45427658,3207.1,3206.8,1.220179]
[1642453612518,2.23373498,3207.1,3206.8,1.22358954]
[1642453612994,0.77946,3207.0,3206.8,1.22358954]
[1642453613769,0.77946,3207.0,3206.8,4.32358954]
[1642453614173,0.77946,3207.0,3206.9,1.0]
[1642453614582,0.77946,3207.0,3206.9,1.01716593]
[1642453615145,0.77946,3207.0,3206.9,0.96716593]
[1642453616070,0.77946,3207.0,3206.8,4.32358954]
[1642453616674,1.98495849,3207.0,3206.8,4.32358954]
[1642453616870,1.98495849,3207.0,3206.8,4.27358954]
[1642453617933,0.77946,3207.0,3206.8,4.27358954]
[1642453618732,0.77946,3207.0,3206.8,3.10341054]
[1642453618926,3.13040176,3207.0,3206.7,0.00124053]
[1642453619133,0.04585132,3206.9,3206.7,0.00124053]
[1642453619330,15.6184189,3206.9,3206.0,0.124648]
[1642453619521,2.3389015,3206.7,3206.0,0.124648]
[1642453619732,1.26941287,3206.3,3206.2,0.00341054]
[1642453619943,2.11131287,3206.3,3206.2,1.47867864]
[1642453620222,9.66131287,3206.3,3206.0,0.124648]
[1642453620423,10.44106477,3206.3,3206.0,0.124648]
[1642453621061,10.44106477,3206.3,3205.0,0.001]
[1642453621062,1.35825396,3205.6,3205.0,0.001]
[1642453621272,1.35825396,3205.6,3205.4,1.21564464]
[1642453621464,2.13805396,3205.6,3205.4,1.21564464]
[1642453622573,2.91789006,3205.6,3205.4,1.21564464]
[1642453623174,4.93375074,3205.5,3205.1,0.00625266]
[1642453623816,6.49356024,3205.5,3205.1,0.00625266]
[1642453624066,2.33987,3205.4,3205.1,0.00625266]
[1642453624267,12.44254645,3205.3,3205.1,0.00625266]
[1642453624491,14.0123183,3205.2,3205.0,0.001]
[1642453624729,14.0123183,3205.2,3203.9,7.42]
[1642453624730,9.6100307,3205.2,3203.9,7.42]
[1642453624931,1.5601575,3205.0,3203.9,7.42]
[1642453625133,1.5601575,3205.0,3203.1,5.59689562]
[1642453625134,18.55,3204.8,3203.1,5.59689562]
[1642453625320,1.35222054,3203.4,3203.1,5.49689562]
[1642453625518,3.04611714,3203.4,3203.2,0.00454739]
[1642453625716,2.4742366,3203.4,3203.2,0.00454739]
[1642453626720,2.4742366,3203.4,3203.2,1.55248966]
[1642453626920,2.4742366,3203.4,3203.2,1.25248966]
[1642453629564,2.48648457,3203.4,3203.2,1.25248966]
[1642453630573,3.26689457,3203.4,3203.2,1.25248966]
[1642453631398,6.27107797,3203.3,3203.2,1.25248966]
[1642453631682,1.47107797,3203.3,3203.2,1.25248966]
[1642453632913,2.35339457,3203.4,3203.2,1.25248966]
[1642453634317,1.4604758,3203.3,3203.2,1.25248966]
[1642453634516,1.4604758,3203.3,3202.8,1.22812198]
[1642453634943,1.4604758,3203.3,3202.9,0.00170527]
[1642453635418,5.69418365,3203.3,3202.9,0.00170527]
[1642453635818,0.78047,3203.1,3202.9,0.00170527]
[1642453636069,1.5609304,3203.1,3202.9,0.00170527]
[1642453637023,0.7804604,3203.1,3202.9,0.00170527]
[1642453637878,0.7804604,3203.1,3203.0,1.10438717]
[1642453638279,1.5608904,3203.1,3203.0,0.00113685]
[1642453638971,1.5608904,3203.1,3202.8,1.22812198]
[1642453638972,5.84649964,3203.1,3202.8,1.22812198]
[1642453639178,5.84649964,3203.1,3202.7,0.00127324]
[1642453639387,0.7806,3202.7,3201.7,1.2049]
[1642453639585,0.05647806,3202.6,3201.5,7.42]
[1642453639824,4.31379458,3202.7,3201.5,7.42]
[1642453640033,4.31379458,3202.7,3202.4,1.21762506]
[1642453640290,0.78065,3202.6,3202.4,1.21762506]
[1642453640425,0.78065,3202.6,3202.5,0.00284212]
[1642453640426,2.34197,3202.6,3202.5,0.00284212]
[1642453640631,3.1226114,3202.6,3202.4,1.16762506]
[1642453641856,17.0,3202.5,3202.3,1.37885856]
[1642453642122,8.2,3202.3,3201.3,2.0520251]
[1642453642326,0.78075,3202.1,3201.3,2.0520251]
[1642453642527,0.78075,3202.1,3201.4,1.34748296]
[1642453642922,0.78075,3202.1,3201.5,0.00568423]
[1642453643122,2.20546609,3202.1,3201.5,1.43413944]
[1642453643574,2.20546609,3202.1,3201.6,0.00511581]
[1642453643768,2.66986127,3202.0,3201.6,0.00511581]
[1642453645372,2.34253,3201.9,3201.6,0.00511581]
[1642453645575,3.9041565,3201.9,3201.6,0.00511581]
[1642453645772,3.9041565,3201.9,3201.5,0.00568423]
[1642453646792,2.66986127,3201.8,3201.5,0.00568423]
[1642453647628,3.45067127,3201.8,3201.5,0.00568423]
[1642453647872,2.66986127,3201.8,3201.5,0.00568423]
[1642453648626,2.66986127,3201.7,3201.5,0.00568423]
[1642453649937,1.56161,3201.7,3201.5,0.00568423]
[1642453650983,1.56161,3201.7,3201.4,1.31195454]
[1642453651172,1.56161,3201.7,3201.4,1.91195454]
[1642453651173,3.45066047,3201.6,3201.4,1.91195454]
[1642453651473,3.45066047,3201.6,3201.4,1.88373454]
[1642453652274,2.66986127,3201.5,3201.4,1.87896454]
[1642453653885,0.7807992,3201.6,3201.4,1.87896454]
[1642453655131,0.7807992,3201.6,3201.4,1.74674454]
[1642453655324,0.7807992,3201.6,3201.4,1.61195454]
[1642453655530,1.5615992,3201.6,3201.4,1.61195454]
[1642453657130,1.5615992,3201.6,3201.4,1.91195454]
[1642453658582,0.78068,3201.9,3201.4,2.91195454]
[1642453659576,0.0122524,3201.6,3201.4,2.91195454]
[1642453660993,0.0122524,3201.6,3201.4,1.91195454]
[1642453661179,0.0122524,3201.6,3201.4,2.91195454]
[1642453661779,0.00284212,3202.0,3201.5,0.01238243]
[1642453662217,0.00227369,3201.9,3201.5,0.01238243]
[1642453662620,0.78064,3202.0,3201.5,0.01238243]
[1642453662621,0.00170527,3201.8,3201.5,0.01238243]
[1642453663042,0.00113685,3201.7,3201.5,0.01238243]
[1642453663426,0.00227369,3201.9,3201.5,0.01238243]
[1642453663821,0.00170527,3201.8,3201.5,0.01238243]
[1642453664223,0.00113685,3201.7,3201.4,2.91195454]
[1642453665624,0.78186525,3201.7,3201.4,2.91195454]
[1642453678523,0.78186525,3201.7,3201.5,0.452]
[1642453693021,1.1678,3202.6,3201.6,22.76756997]
[1642453693222,7.7462,3202.4,3201.7,1.452]
[1642453693423,0.00170527,3202.0,3201.7,1.452]
[1642453693734,0.00113684,3201.9,3201.7,1.452]
[1642453694223,0.00341054,3202.3,3201.8,1.24571414]
[1642453694429,0.00341054,3202.3,3201.9,0.452]
[1642453694627,0.00284211,3202.2,3201.9,1.68311913]
[1642453695034,0.00227369,3202.1,3201.9,2.68311913]
[1642453695228,0.00227369,3202.1,3201.9,6.81703131]
[1642453695432,0.78053,3202.6,3202.5,1.25355923]
[1642453696071,0.78053,3202.6,3202.5,4.35355923]
[1642453705677,0.7805043,3202.8,3202.5,4.35355923]
[1642453705879,1.5610443,3202.8,3202.5,4.35355923]
[1642453706077,0.00568423,3202.7,3202.5,4.60355923]
[1642453706478,0.00511581,3202.6,3202.5,4.60355923]
[1642453708924,0.00511581,3202.6,3202.5,3.4]
[1642453709131,0.00511581,3202.6,3202.5,3.1]
[1642453711280,2.67525683,3202.6,3202.5,3.1]
[1642453713881,2.62525683,3202.6,3202.5,3.1]
[1642453714831,1.5610443,3202.8,3202.5,3.1]
[1642453716432,1.5610443,3202.8,3202.5,3.05]
[1642453725028,5.73422704,3202.8,3202.5,3.05]
[1642453725830,5.73422704,3202.8,3201.3,1.6000251]
[1642453725831,0.7807834,3202.4,3201.3,1.6000251]
[1642453726087,0.05008387,3202.2,3201.3,1.6000251]
[1642453726273,0.05008387,3202.2,3201.4,0.00682108]
[1642453727092,1.29212704,3201.9,3201.5,1.30706916]
[1642453727280,2.07292704,3201.9,3201.5,1.30706916]
[1642453727485,2.07292704,3201.9,3201.6,0.00568424]
[1642453727878,0.7808,3201.9,3201.6,0.00568424]
[1642453734276,2.6705983,3201.8,3201.6,0.00568424]
[1642453734685,2.6705983,3201.8,3201.6,4.08796604]
[1642453735081,0.7807011,3202.3,3201.7,0.00511581]
[1642453735729,1.5614011,3202.3,3202.1,1.42650731]
[1642453735883,1.13163343,3202.2,3202.1,1.42650731]
[1642453736289,3.80210448,3202.2,3202.1,1.42650731]
[1642453743194,2.67047105,3202.2,3202.1,1.42650731]
[1642453744484,2.67047105,3202.4,3202.1,1.42650731]
[1642453744754,1.4070651,3202.3,3202.1,1.42650731]
[1642453744942,1.4070651,3202.3,3202.2,0.0022737]
[1642453746528,10.07753615,3202.3,3202.2,0.0022737]
[1642453746644,0.78074,3202.1,3201.6,0.00568424]
[1642453747249,1.17513622,3201.8,3201.6,0.00568424]
[1642453747446,1.17513622,3201.8,3201.6,0.30568424]
[1642453747661,1.17513622,3201.8,3201.5,0.00625266]
[1642453747845,1.17513622,3201.8,3201.7,0.00511581]
[1642453748046,1.17513622,3201.8,3201.5,0.00625266]
[1642453748247,1.17513622,3201.8,3201.7,1.31350182]
[1642453748488,1.5615634,3201.9,3201.7,1.61350182]
[1642453748744,0.78078,3201.9,3201.7,1.61861763]
[1642453748883,0.78078,3201.9,3201.8,0.00454739]
[1642453750084,1.8898902,3201.9,3201.8,0.00454739]
[1642453754545,1.8898902,3201.9,3201.4,0.00682108]
[1642453754732,1.8898902,3201.9,3201.4,0.30682108]
[1642453754733,0.780805,3201.8,3201.4,0.30682108]
[1642453755134,0.780805,3201.8,3201.5,0.00625266]
[1642453755733,2.67085433,3201.7,3201.5,0.00625266]
[1642453763683,6.93333222,3201.7,3201.5,0.00625266]
[1642453763931,4.2109654,3201.6,3201.5,0.00625266]
[1642453764087,4.2109654,3201.6,3200.4,4.23178568]
[1642453764088,0.07194563,3201.3,3200.4,0.0033576]
[1642453764299,0.06479012,3200.8,3200.3,0.124868]
[1642453764484,18.25,3200.7,3200.2,0.26698613]
[1642453764692,1.54252771,3200.5,3200.2,0.26698613]
[1642453764895,4.75,3200.4,3200.2,0.21812297]
[1642453765090,0.7812,3200.4,3200.2,0.21812297]
[1642453765330,18.55,3200.3,3200.0,0.01509091]
[1642453765528,18.55,3200.1,3199.6,8.42195026]
[1642453765693,4.6629654,3200.0,3199.6,8.42195026]
[1642453765894,18.55,3199.7,3198.7,7.88336822]
[1642453766129,18.55,3199.7,3198.6,5.35079293]
[1642453766130,0.01268376,3199.0,3198.6,5.35079293]
[1642453766288,9.9,3198.9,3198.6,5.35079293]
[1642453766488,8.39381343,3198.7,3198.6,5.35079293]
[1642453766691,1.34381343,3198.7,3198.6,5.35079293]
[1642453766898,1.34381343,3198.7,3198.6,5.30192978]
[1642453767140,9.34381343,3198.7,3198.6,5.30192978]
[1642453767330,9.34381343,3198.7,3198.6,0.00113685]
[1642453767547,9.79581343,3198.7,3198.6,0.00113685]
[1642453767725,9.79581343,3198.7,3198.0,0.00454739]
[1642453767928,0.78171,3198.5,3198.0,0.00454739]
[1642453768532,1.56345,3198.5,3198.0,0.00454739]
[1642453769331,2.67085433,3198.4,3198.0,0.00454739]
[1642453770133,4.23421433,3198.4,3198.0,0.00454739]
[1642453770401,0.7816727,3198.3,3198.1,1.41813834]
[1642453770539,0.7816727,3198.3,3198.2,0.3]
[1642453770748,0.7816727,3198.3,3198.2,0.30341055]
[1642453771188,0.7816727,3198.3,3198.2,0.00341055]
[1642453771401,0.78182,3198.2,3197.9,0.124946]
[1642453771584,4.21326773,3198.1,3197.9,0.124946]
[1642453771800,0.7818,3198.1,3198.0,0.00113684]
[1642453772195,2.27138129,3198.1,3198.0,0.00113684]
[1642453772384,14.9,3198.0,3197.9,0.124946]
[1642453772589,19.81720356,3198.0,3197.9,0.124946]
[1642453773617,19.81720356,3198.0,3197.9,0.074946]
[1642453774185,5.05,3197.9,3196.9,8.84571738]
[1642453774391,0.781869,3197.5,3196.9,7.42]
[1642453774588,0.781869,3197.5,3197.0,1.00568424]
[1642453774833,0.781869,3197.5,3197.0,0.00568424]
[1642453775041,0.781869,3197.5,3196.9,0.55511581]
[1642453775242,0.781869,3197.5,3197.0,1.34226922]
[1642453775243,7.35108961,3197.5,3197.0,1.34226922]
[1642453775432,0.78364527,3197.4,3197.0,1.34226922]
[1642453775834,5.35,3197.1,3196.7,0.124948]
[1642453776036,5.07550289,3197.1,3196.5,1.6000251]
[1642453776263,0.7821,3197.1,3196.8,0.00170527]
[1642453777237,0.7821,3197.1,3196.9,1.17689953]
[1642453777537,1.5641776,3197.0,3196.8,0.00170527]
[1642453777741,12.51508958,3196.9,3196.8,0.00170527]
[1642453778337,4.31508958,3196.9,3196.8,0.00170527]
[1642453778583,3.45294193,3197.0,3196.8,0.00170527]
[1642453778992,7.12085433,3196.9,3196.8,0.00170527]
[1642453779181,2.67085433,3196.9,3196.8,0.00170527]
[1642453781083,12.37085433,3196.9,3196.8,0.00170527]
[1642453781584,2.67085433,3196.9,3196.8,0.00170527]
[1642453782084,14.77187905,3196.9,3196.8,0.00170527]
[1642453782334,14.78148314,3196.9,3196.8,0.00170527]
[1642453782932,0.78215,3196.8,3196.6,0.00284212]
[1642453783234,4.1174981,3196.8,3196.6,0.00284212]
[1642453783426,5.32524832,3196.8,3196.6,0.00284212]
[1642453783927,7.2,3196.6,3196.3,1.46935413]
[1642453784128,1.5644299,3196.5,3196.3,1.46935413]
[1642453784327,15.85,3196.4,3195.4,5.693]
[1642453784611,15.85,3196.4,3195.3,1.16130602]
[1642453784612,2.71075971,3196.2,3195.3,1.16130602]
[1642453784729,11.2,3196.1,3195.3,1.11528498]
[1642453784932,11.9607,3196.1,3195.0,1.1822]
[1642453785133,0.00170527,3196.0,3195.4,0.00170527]
[1642453785331,1.5646988,3195.9,3195.8,1.34308698]
[1642453785553,1.56583565,3195.9,3195.8,1.34308698]
[1642453786083,16.06583565,3195.9,3195.8,1.34308698]
[1642453786281,16.31043565,3195.9,3195.8,1.34308698]
[1642453786479,16.31042685,3195.9,3195.8,1.34308698]
[1642453787085,20.59341693,3195.9,3195.8,1.34308698]
[1642453787381,23.01967126,3195.9,3195.4,0.00170527]
[1642453787609,1.13291752,3195.2,3195.0,0.001]
[1642453787824,1.13291752,3195.2,3194.8,0.00133867]
[1642453787825,16.8,3195.1,3194.8,0.00133867]
[1642453787990,0.78262,3195.0,3194.8,0.00133867]
[1642453788313,0.78262,3195.0,3194.9,0.00284212]
[1642453788499,0.78262,3195.0,3194.5,1.14459281]
[1642453788500,9.35,3194.8,3194.5,1.14459281]
[1642453788689,10.13267,3194.8,3194.5,1.14459281]
[1642453788929,9.03267,3194.7,3194.6,0.00170527]
[1642453789304,10.50857465,3194.7,3194.6,0.00170527]
[1642453789489,9.03267,3194.7,3194.6,0.00170527]
[1642453790332,9.03267,3194.7,3194.0,0.00511581]
[1642453790536,0.78267,3194.5,3193.8,0.00625266]
[1642453790732,1.52187,3194.5,3193.8,0.00625266]
[1642453791345,3.43889423,3194.4,3193.8,0.00625266]
[1642453791547,3.43889423,3194.4,3193.9,1.50558533]
[1642453791734,3.43889423,3194.4,3194.0,1.20386878]
[1642453791936,3.43889423,3194.4,3194.0,1.20898459]
[1642453792146,3.43889423,3194.4,3194.1,0.00454739]
[1642453792843,3.43889423,3194.4,3194.1,0.30454739]
[1642453793051,3.43889423,3194.4,3194.1,0.28302417]
[1642453793246,3.43889423,3194.4,3194.2,0.00397896]
[1642453793977,5.02687753,3194.3,3194.2,0.00397896]
[1642453794377,3.43889423,3194.4,3194.3,13.35]
[1642453794378,0.0997792,3194.4,3194.3,13.35]
[1642453794594,2.15787126,3194.5,3194.3,1.3]
[1642453794783,2.15787126,3194.5,3194.3,1.60341054]
[1642453794982,3.12145669,3194.6,3194.5,17.8]
[1642453795280,4.01506305,3194.9,3194.5,13.59352359]
[1642453795493,4.01506305,3194.9,3194.6,1.30329038]
[1642453795682,4.01506305,3194.9,3194.6,2.30329038]
[1642453795880,4.01506305,3194.9,3194.7,0.00113685]
[1642453796516,3.96506305,3194.9,3194.7,0.00113685]
[1642453796793,1.52389494,3195.0,3194.7,4.13389391]
[1642453797092,1.52389494,3195.0,3194.7,0.30113685]
[1642453797925,1.52389494,3194.9,3194.7,0.30113685]
[1642453800841,1.52389494,3195.0,3194.7,0.30113685]
[1642453803789,2.29071147,3195.2,3194.7,0.30113685]
[1642453803790,1.52389494,3194.9,3194.7,0.30113685]
[1642453803994,1.07574171,3194.9,3194.7,0.30113685]
[1642453804190,0.62872533,3195.1,3194.8,18.55]
[1642453804404,3.90182087,3195.9,3194.9,37.93775537]
[1642453804589,3.90182087,3195.9,3195.0,0.452]
[1642453804842,3.90182087,3195.9,3195.1,1.1150163]
[1642453804843,0.00397896,3195.8,3195.1,1.1150163]
[1642453805036,0.00397896,3195.8,3195.5,0.51884636]
[1642453805234,0.00341054,3195.7,3195.6,1.44567821]
[1642453805453,0.00341054,3195.7,3195.6,1.74567821]
[1642453806549,0.00341054,3195.7,3195.6,2.93912899]
[1642453807737,0.00341054,3195.7,3195.6,8.48912899]
[1642453807956,0.00341054,3195.7,3195.6,2.93912899]
[1642453808338,0.00341054,3195.7,3195.6,3.93912899]
[1642453808585,0.00341054,3195.7,3195.6,4.39112899]
[1642453808793,0.00341054,3195.7,3195.6,23.01609728]
[1642453809582,0.00341054,3195.7,3195.6,2.2726465]
[1642453809811,0.00341054,3195.7,3195.6,2.19767821]
[1642453809986,0.00341054,3195.7,3195.6,3.19767821]
[1642453810188,0.00341054,3195.7,3195.6,2.19767821]
[1642453810486,0.00341054,3195.7,3195.1,0.452]
[1642453810686,0.00341054,3195.7,3195.0,1.1928]
[1642453810946,0.00284211,3195.6,3194.7,0.452]
[1642453811287,0.00227369,3195.5,3194.8,0.00170527]
[1642453811492,0.00227369,3195.5,3195.2,1.41393015]
[1642453811693,0.00170527,3195.4,3195.2,1.41393015]
[1642453812088,0.00113684,3195.3,3195.2,1.41393015]
[1642453812528,0.00113684,3195.3,3194.8,0.00170527]
[1642453813128,0.00113684,3195.3,3194.8,0.30170527]
[1642453813528,0.00113684,3195.3,3194.9,0.00113685]
[1642453813942,0.00113684,3195.3,3194.8,0.00170527]
[1642453814734,0.00113684,3195.3,3195.0,0.03050479]
[1642453815194,2.67712606,3195.3,3195.0,0.03050479]
[1642453816409,2.67712606,3195.3,3195.1,1.10808857]
[1642453818179,2.67712606,3195.3,3195.0,0.03050479]
[1642453818423,4.1253616,3195.3,3195.0,0.03050479]
[1642453819281,4.1253616,3195.3,3195.0,3.13050479]
[1642453819741,4.1253616,3195.3,3195.2,0.01552214]
[1642453820346,1.44937238,3195.3,3195.2,0.01552214]
[1642453824690,1.44937238,3195.3,3195.0,3.11552214]
[1642453825700,0.78245,3195.2,3195.0,3.11552214]
[1642453826488,0.78245,3195.2,3194.8,0.00170527]
[1642453826489,0.06411812,3195.1,3194.8,0.00170527]
[1642453826689,1.5652372,3195.0,3194.8,0.00170527]
[1642453826890,0.78262,3194.8,3193.9,1.36095072]